Workbook

Sheet INVENTARIO
C2: LOGO Y DATOS DE LA EMPRESA
A5: INVENTARIO
A7: CODIGO | B7: CATEGORÍA | C7: SUBCATEGORÍA | D7: ARTÍCULO | E7: STOCK | F7: ENTRADAS | G7: SALIDAS | H7: PRECIO COMPRA | I7: PRECIO VENTA | J7: TOTAL
A8: 18 | B8: JUGUETERIA | C8: NIÑA | D8: MUÑECA BARBIE | E8: =+INVENTARIO[[#This Row],[ENTRADAS]]-INVENTARIO[[#This Row],[SALIDAS]] -> 41 | F8: =SUMIF(ENTRADAS[CODIGO],INVENTARIO[[#This Row],[CODIGO]],ENTRADAS[CANTIDAD]) -> 50 | G8: =SUMIF(SALIDAS[CODIGO],INVENTARIO[[#This Row],[CODIGO]],SALIDAS[CANTIDAD]) -> 9 | H8: 2000 | I8: =INVENTARIO[[#This Row],[PRECIO COMPRA]]*2 -> 4000 | J8: =INVENTARIO[[#This Row],[STOCK]]*INVENTARIO[[#This Row],[PRECIO COMPRA]] -> 82000
A9: 17 | B9: JUGUETERIA | C9: NIÑA | D9: COCHE DE BEBÉ | E9: =+INVENTARIO[[#This Row],[ENTRADAS]]-INVENTARIO[[#This Row],[SALIDAS]] -> 50 | F9: =SUMIF(ENTRADAS[CODIGO],INVENTARIO[[#This Row],[CODIGO]],ENTRADAS[CANTIDAD]) -> 50 | G9: =SUMIF(SALIDAS[CODIGO],INVENTARIO[[#This Row],[CODIGO]],SALIDAS[CANTIDAD]) -> 0 | H9: 4000 | I9: =INVENTARIO[[#This Row],[PRECIO COMPRA]]*2 -> 8000 | J9: =INVENTARIO[[#This Row],[STOCK]]*INVENTARIO[[#This Row],[PRECIO COMPRA]] -> 200000
A10: 16 | B10: JUGUETERIA | C10: NIÑA | D10: KIT DE COCINA | E10: =+INVENTARIO[[#This Row],[ENTRADAS]]-INVENTARIO[[#This Row],[SALIDAS]] -> 42 | F10: =SUMIF(ENTRADAS[CODIGO],INVENTARIO[[#This Row],[CODIGO]],ENTRADAS[CANTIDAD]) -> 50 | G10: =SUMIF(SALIDAS[CODIGO],INVENTARIO[[#This Row],[CODIGO]],SALIDAS[CANTIDAD]) -> 8 | H10: 6000 | I10: =INVENTARIO[[#This Row],[PRECIO COMPRA]]*2 -> 12000 | J10: =INVENTARIO[[#This Row],[STOCK]]*INVENTARIO[[#This Row],[PRECIO COMPRA]] -> 252000
A11: 15 | B11: JUGUETERIA | C11: NIÑO | D11: CARRO A CONTROL | E11: =+INVENTARIO[[#This Row],[ENTRADAS]]-INVENTARIO[[#This Row],[SALIDAS]] -> 50 | F11: =SUMIF(ENTRADAS[CODIGO],INVENTARIO[[#This Row],[CODIGO]],ENTRADAS[CANTIDAD]) -> 50 | G11: =SUMIF(SALIDAS[CODIGO],INVENTARIO[[#This Row],[CODIGO]],SALIDAS[CANTIDAD]) -> 0 | H11: 8000 | I11: =INVENTARIO[[#This Row],[PRECIO COMPRA]]*2 -> 16000 | J11: =INVENTARIO[[#This Row],[STOCK]]*INVENTARIO[[#This Row],[PRECIO COMPRA]] -> 400000
A12: 14 | B12: JUGUETERIA | C12: NIÑO | D12: PISTA DE CARROS | E12: =+INVENTARIO[[#This Row],[ENTRADAS]]-INVENTARIO[[#This Row],[SALIDAS]] -> 43 | F12: =SUMIF(ENTRADAS[CODIGO],INVENTARIO[[#This Row],[CODIGO]],ENTRADAS[CANTIDAD]) -> 50 | G12: =SUMIF(SALIDAS[CODIGO],INVENTARIO[[#This Row],[CODIGO]],SALIDAS[CANTIDAD]) -> 7 | H12: 10000 | I12: =INVENTARIO[[#This Row],[PRECIO COMPRA]]*2 -> 20000 | J12: =INVENTARIO[[#This Row],[STOCK]]*INVENTARIO[[#This Row],[PRECIO COMPRA]] -> 430000
A13: 13 | B13: JUGUETERIA | C13: NIÑO | D13: LEGO | E13: =+INVENTARIO[[#This Row],[ENTRADAS]]-INVENTARIO[[#This Row],[SALIDAS]] -> 50 | F13: =SUMIF(ENTRADAS[CODIGO],INVENTARIO[[#This Row],[CODIGO]],ENTRADAS[CANTIDAD]) -> 50 | G13: =SUMIF(SALIDAS[CODIGO],INVENTARIO[[#This Row],[CODIGO]],SALIDAS[CANTIDAD]) -> 0 | H13: 12000 | I13: =INVENTARIO[[#This Row],[PRECIO COMPRA]]*2 -> 24000 | J13: =INVENTARIO[[#This Row],[STOCK]]*INVENTARIO[[#This Row],[PRECIO COMPRA]] -> 600000
A14: 12 | B14: ROPA | C14: DAMA | D14: BLUSA ALGODÓN | E14: =+INVENTARIO[[#This Row],[ENTRADAS]]-INVENTARIO[[#This Row],[SALIDAS]] -> 47 | F14: =SUMIF(ENTRADAS[CODIGO],INVENTARIO[[#This Row],[CODIGO]],ENTRADAS[CANTIDAD]) -> 50 | G14: =SUMIF(SALIDAS[CODIGO],INVENTARIO[[#This Row],[CODIGO]],SALIDAS[CANTIDAD]) -> 3 | H14: 14000 | I14: =INVENTARIO[[#This Row],[PRECIO COMPRA]]*2 -> 28000 | J14: =INVENTARIO[[#This Row],[STOCK]]*INVENTARIO[[#This Row],[PRECIO COMPRA]] -> 658000
A15: 11 | B15: ROPA | C15: DAMA | D15: SWEATER DE LANA | E15: =+INVENTARIO[[#This Row],[ENTRADAS]]-INVENTARIO[[#This Row],[SALIDAS]] -> 50 | F15: =SUMIF(ENTRADAS[CODIGO],INVENTARIO[[#This Row],[CODIGO]],ENTRADAS[CANTIDAD]) -> 50 | G15: =SUMIF(SALIDAS[CODIGO],INVENTARIO[[#This Row],[CODIGO]],SALIDAS[CANTIDAD]) -> 0 | H15: 16000 | I15: =INVENTARIO[[#This Row],[PRECIO COMPRA]]*2 -> 32000 | J15: =INVENTARIO[[#This Row],[STOCK]]*INVENTARIO[[#This Row],[PRECIO COMPRA]] -> 800000
A16: 10 | B16: ROPA | C16: DAMA | D16: ZAPATOS | E16: =+INVENTARIO[[#This Row],[ENTRADAS]]-INVENTARIO[[#This Row],[SALIDAS]] -> 49 | F16: =SUMIF(ENTRADAS[CODIGO],INVENTARIO[[#This Row],[CODIGO]],ENTRADAS[CANTIDAD]) -> 50 | G16: =SUMIF(SALIDAS[CODIGO],INVENTARIO[[#This Row],[CODIGO]],SALIDAS[CANTIDAD]) -> 1 | H16: 18000 | I16: =INVENTARIO[[#This Row],[PRECIO COMPRA]]*2 -> 36000 | J16: =INVENTARIO[[#This Row],[STOCK]]*INVENTARIO[[#This Row],[PRECIO COMPRA]] -> 882000
A17: 9 | B17: ROPA | C17: CABALLERO | D17: JEANS | E17: =+INVENTARIO[[#This Row],[ENTRADAS]]-INVENTARIO[[#This Row],[SALIDAS]] -> 50 | F17: =SUMIF(ENTRADAS[CODIGO],INVENTARIO[[#This Row],[CODIGO]],ENTRADAS[CANTIDAD]) -> 50 | G17: =SUMIF(SALIDAS[CODIGO],INVENTARIO[[#This Row],[CODIGO]],SALIDAS[CANTIDAD]) -> 0 | H17: 20000 | I17: =INVENTARIO[[#This Row],[PRECIO COMPRA]]*2 -> 40000 | J17: =INVENTARIO[[#This Row],[STOCK]]*INVENTARIO[[#This Row],[PRECIO COMPRA]] -> 1000000
A18: 8 | B18: ROPA | C18: CABALLERO | D18: CAMISA MANGA LARGA | E18: =+INVENTARIO[[#This Row],[ENTRADAS]]-INVENTARIO[[#This Row],[SALIDAS]] -> 30 | F18: =SUMIF(ENTRADAS[CODIGO],INVENTARIO[[#This Row],[CODIGO]],ENTRADAS[CANTIDAD]) -> 50 | G18: =SUMIF(SALIDAS[CODIGO],INVENTARIO[[#This Row],[CODIGO]],SALIDAS[CANTIDAD]) -> 20 | H18: 22000 | I18: =INVENTARIO[[#This Row],[PRECIO COMPRA]]*2 -> 44000 | J18: =INVENTARIO[[#This Row],[STOCK]]*INVENTARIO[[#This Row],[PRECIO COMPRA]] -> 660000
A19: 7 | B19: ROPA | C19: CABALLERO | D19: CHAQUETA | E19: =+INVENTARIO[[#This Row],[ENTRADAS]]-INVENTARIO[[#This Row],[SALIDAS]] -> 50 | F19: =SUMIF(ENTRADAS[CODIGO],INVENTARIO[[#This Row],[CODIGO]],ENTRADAS[CANTIDAD]) -> 50 | G19: =SUMIF(SALIDAS[CODIGO],INVENTARIO[[#This Row],[CODIGO]],SALIDAS[CANTIDAD]) -> 0 | H19: 24000 | I19: =INVENTARIO[[#This Row],[PRECIO COMPRA]]*2 -> 48000 | J19: =INVENTARIO[[#This Row],[STOCK]]*INVENTARIO[[#This Row],[PRECIO COMPRA]] -> 1200000
A20: 6 | B20: LICORES | C20: NACIONALES | D20: AGUARDIENTE | E20: =+INVENTARIO[[#This Row],[ENTRADAS]]-INVENTARIO[[#This Row],[SALIDAS]] -> 10 | F20: =SUMIF(ENTRADAS[CODIGO],INVENTARIO[[#This Row],[CODIGO]],ENTRADAS[CANTIDAD]) -> 50 | G20: =SUMIF(SALIDAS[CODIGO],INVENTARIO[[#This Row],[CODIGO]],SALIDAS[CANTIDAD]) -> 40 | H20: 26000 | I20: =INVENTARIO[[#This Row],[PRECIO COMPRA]]*2 -> 52000 | J20: =INVENTARIO[[#This Row],[STOCK]]*INVENTARIO[[#This Row],[PRECIO COMPRA]] -> 260000
A21: 5 | B21: LICORES | C21: NACIONALES | D21: RON | E21: =+INVENTARIO[[#This Row],[ENTRADAS]]-INVENTARIO[[#This Row],[SALIDAS]] -> 50 | F21: =SUMIF(ENTRADAS[CODIGO],INVENTARIO[[#This Row],[CODIGO]],ENTRADAS[CANTIDAD]) -> 50 | G21: =SUMIF(SALIDAS[CODIGO],INVENTARIO[[#This Row],[CODIGO]],SALIDAS[CANTIDAD]) -> 0 | H21: 28000 | I21: =INVENTARIO[[#This Row],[PRECIO COMPRA]]*2 -> 56000 | J21: =INVENTARIO[[#This Row],[STOCK]]*INVENTARIO[[#This Row],[PRECIO COMPRA]] -> 1400000
A22: 4 | B22: LICORES | C22: NACIONALES | D22: CERVEZA | E22: =+INVENTARIO[[#This Row],[ENTRADAS]]-INVENTARIO[[#This Row],[SALIDAS]] -> 45 | F22: =SUMIF(ENTRADAS[CODIGO],INVENTARIO[[#This Row],[CODIGO]],ENTRADAS[CANTIDAD]) -> 50 | G22: =SUMIF(SALIDAS[CODIGO],INVENTARIO[[#This Row],[CODIGO]],SALIDAS[CANTIDAD]) -> 5 | H22: 30000 | I22: =INVENTARIO[[#This Row],[PRECIO COMPRA]]*2 -> 60000 | J22: =INVENTARIO[[#This Row],[STOCK]]*INVENTARIO[[#This Row],[PRECIO COMPRA]] -> 1350000
A23: 3 | B23: LICORES | C23: IMPORTADOS | D23: WHISKY | E23: =+INVENTARIO[[#This Row],[ENTRADAS]]-INVENTARIO[[#This Row],[SALIDAS]] -> 48 | F23: =SUMIF(ENTRADAS[CODIGO],INVENTARIO[[#This Row],[CODIGO]],ENTRADAS[CANTIDAD]) -> 50 | G23: =SUMIF(SALIDAS[CODIGO],INVENTARIO[[#This Row],[CODIGO]],SALIDAS[CANTIDAD]) -> 2 | H23: 32000 | I23: =INVENTARIO[[#This Row],[PRECIO COMPRA]]*2 -> 64000 | J23: =INVENTARIO[[#This Row],[STOCK]]*INVENTARIO[[#This Row],[PRECIO COMPRA]] -> 1536000
A24: 2 | B24: LICORES | C24: IMPORTADOS | D24: TEQUILA | E24: =+INVENTARIO[[#This Row],[ENTRADAS]]-INVENTARIO[[#This Row],[SALIDAS]] -> 32 | F24: =SUMIF(ENTRADAS[CODIGO],INVENTARIO[[#This Row],[CODIGO]],ENTRADAS[CANTIDAD]) -> 50 | G24: =SUMIF(SALIDAS[CODIGO],INVENTARIO[[#This Row],[CODIGO]],SALIDAS[CANTIDAD]) -> 18 | H24: 34000 | I24: =INVENTARIO[[#This Row],[PRECIO COMPRA]]*2 -> 68000 | J24: =INVENTARIO[[#This Row],[STOCK]]*INVENTARIO[[#This Row],[PRECIO COMPRA]] -> 1088000
A25: 1 | B25: LICORES | C25: IMPORTADOS | D25: VINO | E25: =+INVENTARIO[[#This Row],[ENTRADAS]]-INVENTARIO[[#This Row],[SALIDAS]] -> 38 | F25: =SUMIF(ENTRADAS[CODIGO],INVENTARIO[[#This Row],[CODIGO]],ENTRADAS[CANTIDAD]) -> 50 | G25: =SUMIF(SALIDAS[CODIGO],INVENTARIO[[#This Row],[CODIGO]],SALIDAS[CANTIDAD]) -> 12 | H25: 36000 | I25: =INVENTARIO[[#This Row],[PRECIO COMPRA]]*2 -> 72000 | J25: =INVENTARIO[[#This Row],[STOCK]]*INVENTARIO[[#This Row],[PRECIO COMPRA]] -> 1368000
B30: Visita mi sitio web para más contenido: www.pacho8a.com

Sheet ENTRADAS Y SALIDAS
D2: ESPACIO PARA LOGO DE LA EMPRESA
B3: VOLVER A
B4: INVENTARIO
A5: ENTRADAS | F5: SALIDAS
A7: FECHA | B7: CODIGO | C7: PRODUCTO | D7: CANTIDAD | F7: FECHA | G7: CODIGO | H7: PRODUCTO | I7: CANTIDAD
A8: 2017-06-01 | B8: 1 | C8: =IFERROR(VLOOKUP(ENTRADAS[CODIGO],INVENTARIO[],4,FALSE)," ") -> VINO | D8: 50 | F8: 2017-06-01 | G8: 2 | H8: =IFERROR(VLOOKUP(SALIDAS[CODIGO],INVENTARIO[],4,FALSE)," ") -> TEQUILA | I8: 5
A9: 2017-06-02 | B9: 2 | C9: =IFERROR(VLOOKUP(ENTRADAS[CODIGO],INVENTARIO[],4,FALSE)," ") -> TEQUILA | D9: 50 | F9: 2017-06-02 | G9: 4 | H9: =IFERROR(VLOOKUP(SALIDAS[CODIGO],INVENTARIO[],4,FALSE)," ") -> CERVEZA | I9: 5
A10: 2017-06-03 | B10: 3 | C10: =IFERROR(VLOOKUP(ENTRADAS[CODIGO],INVENTARIO[],4,FALSE)," ") -> WHISKY | D10: 50 | F10: 2017-06-03 | G10: 6 | H10: =IFERROR(VLOOKUP(SALIDAS[CODIGO],INVENTARIO[],4,FALSE)," ") -> AGUARDIENTE | I10: 40
A11: 2017-06-04 | B11: 4 | C11: =IFERROR(VLOOKUP(ENTRADAS[CODIGO],INVENTARIO[],4,FALSE)," ") -> CERVEZA | D11: 50 | F11: 2017-06-04 | G11: 8 | H11: =IFERROR(VLOOKUP(SALIDAS[CODIGO],INVENTARIO[],4,FALSE)," ") -> CAMISA MANGA LARGA | I11: 20
A12: 2017-06-05 | B12: 5 | C12: =IFERROR(VLOOKUP(ENTRADAS[CODIGO],INVENTARIO[],4,FALSE)," ") -> RON | D12: 50 | F12: 2017-06-05 | G12: 10 | H12: =IFERROR(VLOOKUP(SALIDAS[CODIGO],INVENTARIO[],4,FALSE)," ") -> ZAPATOS | I12: 1
A13: 2017-06-06 | B13: 6 | C13: =IFERROR(VLOOKUP(ENTRADAS[CODIGO],INVENTARIO[],4,FALSE)," ") -> AGUARDIENTE | D13: 50 | F13: 2017-06-06 | G13: 12 | H13: =IFERROR(VLOOKUP(SALIDAS[CODIGO],INVENTARIO[],4,FALSE)," ") -> BLUSA ALGODÓN | I13: 3
A14: 2017-06-07 | B14: 7 | C14: =IFERROR(VLOOKUP(ENTRADAS[CODIGO],INVENTARIO[],4,FALSE)," ") -> CHAQUETA | D14: 50 | F14: 2017-06-07 | G14: 14 | H14: =IFERROR(VLOOKUP(SALIDAS[CODIGO],INVENTARIO[],4,FALSE)," ") -> PISTA DE CARROS | I14: 7
A15: 2017-06-08 | B15: 8 | C15: =IFERROR(VLOOKUP(ENTRADAS[CODIGO],INVENTARIO[],4,FALSE)," ") -> CAMISA MANGA LARGA | D15: 50 | F15: 2017-06-08 | G15: 16 | H15: =IFERROR(VLOOKUP(SALIDAS[CODIGO],INVENTARIO[],4,FALSE)," ") -> KIT DE COCINA | I15: 8
A16: 2017-06-09 | B16: 9 | C16: =IFERROR(VLOOKUP(ENTRADAS[CODIGO],INVENTARIO[],4,FALSE)," ") -> JEANS | D16: 50 | F16: 2017-06-09 | G16: 18 | H16: =IFERROR(VLOOKUP(SALIDAS[CODIGO],INVENTARIO[],4,FALSE)," ") -> MUÑECA BARBIE | I16: 9
A17: 2017-06-10 | B17: 10 | C17: =IFERROR(VLOOKUP(ENTRADAS[CODIGO],INVENTARIO[],4,FALSE)," ") -> ZAPATOS | D17: 50 | F17: 2017-06-10 | G17: 1 | H17: =IFERROR(VLOOKUP(SALIDAS[CODIGO],INVENTARIO[],4,FALSE)," ") -> VINO | I17: 12
A18: 2017-06-11 | B18: 11 | C18: =IFERROR(VLOOKUP(ENTRADAS[CODIGO],INVENTARIO[],4,FALSE)," ") -> SWEATER DE LANA | D18: 50 | F18: 2017-06-11 | G18: 2 | H18: =IFERROR(VLOOKUP(SALIDAS[CODIGO],INVENTARIO[],4,FALSE)," ") -> TEQUILA | I18: 13
A19: 2017-06-12 | B19: 12 | C19: =IFERROR(VLOOKUP(ENTRADAS[CODIGO],INVENTARIO[],4,FALSE)," ") -> BLUSA ALGODÓN | D19: 50 | F19: 2017-06-12 | G19: 3 | H19: =IFERROR(VLOOKUP(SALIDAS[CODIGO],INVENTARIO[],4,FALSE)," ") -> WHISKY | I19: 2
A20: 2017-06-13 | B20: 13 | C20: =IFERROR(VLOOKUP(ENTRADAS[CODIGO],INVENTARIO[],4,FALSE)," ") -> LEGO | D20: 50
A21: 2017-06-14 | B21: 14 | C21: =IFERROR(VLOOKUP(ENTRADAS[CODIGO],INVENTARIO[],4,FALSE)," ") -> PISTA DE CARROS | D21: 50
A22: 2017-06-15 | B22: 15 | C22: =IFERROR(VLOOKUP(ENTRADAS[CODIGO],INVENTARIO[],4,FALSE)," ") -> CARRO A CONTROL | D22: 50
A23: 2017-06-16 | B23: 16 | C23: =IFERROR(VLOOKUP(ENTRADAS[CODIGO],INVENTARIO[],4,FALSE)," ") -> KIT DE COCINA | D23: 50
A24: 2017-06-17 | B24: 17 | C24: =IFERROR(VLOOKUP(ENTRADAS[CODIGO],INVENTARIO[],4,FALSE)," ") -> COCHE DE BEBÉ | D24: 50
A25: 2017-06-18 | B25: 18 | C25: =IFERROR(VLOOKUP(ENTRADAS[CODIGO],INVENTARIO[],4,FALSE)," ") -> MUÑECA BARBIE | D25: 50

Sheet CONSULTA ARTICULOS
A1: CONSULTA POR ARTÍCULO
A3: CATEGORÍA
A4: SUBCATEGORÍA
A5: ARTÍCULO
A6: CANTIDAD EN STOCK
A7: UNIDADES VENDIDAS
A8: PRECIO DE COMPRA
A9: PRECIO DE VENTA
A10: OBSERVACIONES
